bitfinex/quotes_BTCUSD_20241011
["timestamp","ask_amount","ask_price","bid_price","bid_amount"]
[1728649831995,0.24399369,61418.0,61411.0,0.005]
[1728649832198,0.162821,61418.0,61414.0,0.01118691]
[1728649832403,0.1,61424.0,61409.0,0.325683]
[1728649832570,0.1,61424.0,61415.0,0.01118321]
[1728649832774,0.325611,61423.0,61411.0,0.24399369]
[1728649832978,0.162823,61417.0,61416.0,0.01194582]
[1728649833374,0.32559,61427.0,61417.0,0.325641]
[1728649833375,0.1,61426.0,61417.0,0.325641]
[1728649833592,0.162805,61423.0,61418.0,0.162817]
[1728649833806,0.162809,61422.0,61418.0,0.01193842]
[1728649834019,0.1,61424.0,61418.0,0.01193842]
[1728649834240,0.002,61443.0,61419.0,0.325631]
[1728649834453,0.162798,61426.0,61419.0,0.01193472]
[1728649834691,0.24399369,61427.0,61419.0,0.01193472]
[1728649834692,0.162796,61427.0,61419.0,0.17474972]
[1728649834927,0.1,61428.0,61419.0,0.01193472]
[1728649835150,0.02,61428.0,61427.0,0.60231808]
[1728649835375,0.02,61428.0,61427.0,0.79962738]
[1728649835601,0.02,61428.0,61427.0,0.81179395]
[1728649835818,0.24399369,61435.0,61427.0,0.62599995]
[1728649836035,0.40674869,61442.0,61434.0,0.005]
[1728649836036,0.24399369,61442.0,61434.0,0.005]
[1728649836429,0.24399369,61442.0,61436.0,0.162769]
[1728649836430,0.40674969,61442.0,61436.0,0.162769]
[1728649836671,0.162756,61442.0,61435.0,0.012137]
[1728649836879,0.325484,61447.0,61437.0,0.0121296]
[1728649837091,0.000816,61449.0,61436.0,0.0171333]
[1728649837311,0.162742,61447.0,61441.0,0.162755]
[1728649837536,0.000816,61449.0,61444.0,0.162747]
[1728649837746,0.162739,61448.0,61443.0,0.162751]
[1728649837964,0.325483,61447.0,61445.0,0.01210004]
[1728649838180,0.162747,61445.0,61444.0,0.01210373]
[1728649838368,0.325506,61443.0,61427.0,0.005]
[1728649838581,0.1,61441.0,61429.0,0.24399369]
[1728649838799,0.162786,61430.0,61429.0,0.24399369]
[1728649839025,0.002,61436.0,61417.0,0.16282]
[1728649839247,0.162811,61421.0,61414.0,0.005]
[1728649839454,0.325587,61428.0,61419.0,0.24899369]
[1728649839684,0.24399369,61427.0,61415.0,0.32565]
[1728649839912,0.1,61424.0,61412.0,0.24399369]
[1728649840363,0.102,61422.0,61404.0,0.167855]
[1728649840576,0.002,61419.0,61410.0,0.24399369]
[1728649840792,0.162847,61407.0,61406.0,0.0100968]
[1728649841012,0.325667,61413.0,61403.0,0.24399369]
[1728649841204,0.325648,61416.0,61406.0,0.162849]
[1728649841511,0.325676,61411.0,61403.0,0.08462569]
[1728649841633,0.162845,61408.0,61403.0,0.08462569]
[1728649841862,0.16285,61406.0,61402.0,0.162859]
[1728649842069,0.162845,61408.0,61404.0,0.162854]
[1728649842305,0.24399369,61415.0,61400.0,0.005]
[1728649842497,0.325677,61411.0,61400.0,0.005]
[1728649842731,0.162846,61408.0,61402.0,0.162859]
[1728649842939,0.32567,61412.0,61401.0,0.005]
[1728649843147,0.24399369,61415.0,61402.0,0.162859]
[1728649843354,0.32567,61412.0,61406.0,0.24399369]
[1728649843555,0.24399369,61415.0,61401.0,0.005]
[1728649843844,0.002,61424.0,61401.0,0.005]
[1728649843845,0.24480969,61449.0,61417.0,0.01]
[1728649844044,0.24399369,61423.0,61419.0,0.162814]
[1728649844251,0.24399369,61430.0,61417.0,0.16282]
[1728649844252,0.162804,61424.0,61417.0,0.16282]
[1728649844450,0.162804,61424.0,61418.0,0.162817]
[1728649844654,0.0162804,61423.0,61418.0,0.162816]
[1728649844857,0.1790854,61423.0,61414.0,0.24899369]
[1728649845062,0.1790854,61423.0,61410.0,0.24399369]
[1728649845063,0.162829,61415.0,61410.0,0.24399369]
[1728649845261,0.162825,61416.0,61410.0,0.24399369]
[1728649845466,0.162825,61416.0,61410.0,0.40683269]
[1728649845753,0.0488466,61415.0,61408.0,0.162843]
[1728649845923,0.24399369,61421.0,61407.0,0.24399369]
[1728649846159,0.24399369,61421.0,61407.0,0.41183969]
[1728649846160,0.162834,61412.0,61407.0,0.41183969]
[1728649846401,0.1713093,61420.0,61407.0,0.24399369]
[1728649846608,0.162839,61411.0,61404.0,0.488564]
[1728649846777,0.16284,61410.0,61406.0,0.24399369]
[1728649847008,0.16284,61410.0,61404.0,0.162855]
[1728649847216,0.32566,61414.0,61402.0,0.005]
[1728649847421,0.162845,61408.0,61402.0,0.16286]
[1728649847626,0.0751293,61414.0,61402.0,0.005]
[1728649847832,0.162842,61410.0,61403.0,0.162856]
[1728649848034,0.325668,61413.0,61402.0,0.005]
[1728649848242,0.325689,61409.0,61397.0,0.005]
[1728649848450,0.16286,61403.0,61399.0,0.24399369]
[1728649848659,0.325697,61407.0,61399.0,0.24399369]
[1728649848869,0.1,61420.0,61400.0,0.67851777]
[1728649849075,0.24399369,61414.0,61400.0,0.43952408]
[1728649849284,0.1,61418.0,61412.0,0.43452408]
[1728649849528,0.1,61418.0,61403.0,0.005]
[1728649849529,0.24399369,61414.0,61406.0,0.43452408]
[1728649849730,0.2693093,61418.0,61410.0,0.162839]
[1728649849906,0.328396,61429.0,61412.0,0.43452408]
[1728649849907,0.24399369,61420.0,61412.0,0.43452408]
[1728649850254,0.000817,61429.0,61407.0,0.24399369]
[1728649850255,0.000817,61429.0,61419.0,0.005]
[1728649850471,0.000817,61429.0,61428.0,0.43452408]
[1728649850690,0.326396,61429.0,61422.0,0.43452408]
[1728649850922,0.000817,61429.0,61422.0,0.43452408]
[1728649851358,0.000817,61429.0,61423.0,0.162803]
[1728649851567,0.000817,61429.0,61423.0,0.24399369]
[1728649851788,0.000817,61429.0,61424.0,0.325601]
[1728649852042,0.000817,61429.0,61425.0,0.162798]
[1728649852268,0.000817,61429.0,61422.0,0.59733008]
[1728649852512,0.3264,61429.0,61417.0,0.32564]
[1728649852723,0.3264,61429.0,61419.0,0.24399369]
[1728649852842,0.162796,61427.0,61420.0,0.162812]
[1728649853062,0.000817,61429.0,61424.0,0.162802]
[1728649853340,0.000817,61429.0,61428.0,0.162792]
[1728649853510,0.000817,61429.0,61423.0,0.325609]
[1728649853712,0.000817,61429.0,61419.0,0.24899369]
[1728649854117,0.000817,61429.0,61424.0,0.162801]
[1728649854320,0.000817,61429.0,61421.0,0.325617]
[1728649854520,0.05703757,61428.0,61419.0,0.24899369]
[1728649854743,0.000817,61429.0,61420.0,0.325626]
[1728649855077,0.000817,61429.0,61419.0,0.24899369]
[1728649855078,0.000817,61429.0,61424.0,0.162801]
[1728649855218,0.000817,61429.0,61419.0,0.24899369]
[1728649855417,0.000817,61429.0,61422.0,0.325612]
[1728649855637,0.000817,61429.0,61419.0,0.24899369]
[1728649855638,0.162797,61427.0,61423.0,0.01017633]
[1728649855865,0.0170604,61426.0,61418.0,0.005]
[1728649856070,0.65117,61428.0,61419.0,0.25406705]
[1728649856265,0.162813,61420.0,61419.0,0.01007336]
[1728649856528,0.325619,61422.0,61415.0,0.24399369]
[1728649856827,0.162813,61420.0,61419.0,0.01007336]
[1728649857040,0.162819,61418.0,61412.0,0.167833]
[1728649857288,0.162813,61420.0,61419.0,0.01007336]
[1728649857511,0.1693093,61420.0,61408.0,0.24399369]
[1728649857734,0.1693093,61420.0,61401.0,0.330723]
[1728649857735,0.1,61419.0,61404.0,0.005]
[1728649857953,0.162839,61410.0,61409.0,0.01011035]
[1728649858167,0.002,61417.0,61399.0,0.24399369]
[1728649858383,0.325704,61406.0,61399.0,0.24399369]
[1728649858601,0.162858,61403.0,61400.0,0.01014366]
[1728649858835,0.325728,61401.0,61392.0,0.24399369]
[1728649859054,0.325728,61401.0,61399.0,0.24399369]
[1728649859272,0.162872,61398.0,61392.0,0.40688069]
[1728649859487,0.1693093,61405.0,61392.0,0.24899369]
[1728649859705,0.162873,61398.0,61392.0,0.41188069]
[1728649859921,0.162872,61398.0,61392.0,0.167885]
[1728649860165,0.325724,61402.0,61391.0,0.488665]
[1728649860393,0.325758,61396.0,61390.0,0.001634]
[1728649860625,0.325758,61396.0,61391.0,0.24399369]
[1728649860626,0.162888,61392.0,61391.0,0.24399369]
[1728649860846,0.325765,61394.0,61390.0,0.001634]
[1728649861083,0.162888,61392.0,61390.0,0.001634]
[1728649861297,0.16289,61391.0,61390.0,0.001634]
[1728649861513,0.325765,61394.0,61390.0,0.001634]
[1728649861730,0.162862,61402.0,61393.0,0.162883]
[1728649861950,0.3321723,61401.0,61393.0,0.162883]
[1728649862172,0.1,61408.0,61393.0,0.43452408]
[1728649862388,0.24399369,61407.0,61399.0,0.43452408]
[1728649862614,0.24399369,61407.0,61398.0,0.005]
[1728649862834,0.325666,61413.0,61398.0,0.005]
[1728649862835,0.325666,61413.0,61401.0,0.162563]
[1728649863061,0.1693093,61414.0,61399.0,0.24399369]
[1728649863268,0.1693093,61414.0,61400.0,0.24899369]
[1728649863483,0.16284,61410.0,61401.0,0.162862]
[1728649863697,0.24399369,61407.0,61399.0,0.005]
[1728649863930,0.1693093,61413.0,61400.0,0.24399369]
[1728649864113,0.1,61414.0,61404.0,0.162854]
[1728649864350,0.1,61414.0,61400.0,0.24399369]
[1728649864351,0.325664,61413.0,61405.0,0.01025865]
[1728649864645,0.2118757,61412.0,61405.0,0.01025865]
[1728649864868,0.325685,61409.0,61401.0,0.24399369]
[1728649865081,0.162848,61407.0,61406.0,0.01025495]
[1728649865300,0.325722,61402.0,61392.0,0.24399369]
[1728649865510,0.162864,61401.0,61399.0,0.24399369]
[1728649865727,0.162868,61400.0,61392.0,0.40688069]
[1728649865936,0.325722,61402.0,61392.0,0.24399369]
[1728649866144,0.325723,61402.0,61392.0,0.24399369]
[1728649866366,0.162866,61400.0,61392.0,0.24399369]
[1728649866584,0.325733,61400.0,61390.0,0.001634]
[1728649866822,0.4322033,61401.0,61390.0,0.327419]
[1728649867037,0.1693093,61399.0,61392.0,0.24399369]
[1728649867266,0.1693093,61399.0,61390.0,0.001634]
[1728649867486,0.1,61412.0,61393.0,0.24399369]
[1728649867703,0.162857,61404.0,61397.0,0.162873]
[1728649867925,0.1,61405.0,61398.0,0.24399369]
[1728649868160,0.162857,61404.0,61397.0,0.162872]
[1728649868371,0.162851,61406.0,61399.0,0.162869]
[1728649868647,0.1,61406.0,61391.0,0.005]
[1728649868853,0.325687,61409.0,61400.0,0.162866]
[1728649869066,0.325687,61409.0,61391.0,0.005]
[1728649869067,0.29445352,61408.0,61401.0,0.162861]
[1728649869283,0.1,61421.0,61395.0,0.005]
[1728649869497,0.24399369,61412.0,61405.0,0.325703]
[1728649869711,0.24399369,61414.0,61403.0,0.325713]
[1728649869947,0.325672,61412.0,61403.0,0.325716]
[1728649870174,0.162836,61412.0,61407.0,0.162847]
[1728649870392,0.1,61412.0,61398.0,0.24399369]
[1728649870604,0.162837,61411.0,61405.0,0.16285]
[1728649870820,0.162837,61411.0,61402.0,0.325721]
[1728649871051,0.162837,61411.0,61406.0,0.01031544]
[1728649871279,0.000816,61414.0,61406.0,0.325697]
[1728649871520,0.162834,61413.0,61407.0,0.17315774]
[1728649871704,0.325669,61412.0,61407.0,0.01031174]
[1728649872010,0.162837,61411.0,61404.0,0.325708]
[1728649872305,0.325667,61413.0,61404.0,0.162854]
[1728649872578,0.100816,61414.0,61407.0,0.24399369]
[1728649872804,0.000816,61414.0,61409.0,0.325685]
[1728649873029,0.000816,61414.0,61413.0,0.162831]
[1728649873425,0.000816,61414.0,61413.0,0.17376573]
[1728649875041,0.000816,61414.0,61413.0,0.17356573]
[1728649875485,0.163645,61414.0,61413.0,0.01093473]
[1728649875771,0.162861,61402.0,61401.0,0.24399369]
[1728649875968,0.71891943,61402.0,61401.0,0.24399369]
[1728649876260,0.71891943,61402.0,61401.0,0.25500792]
[1728649876471,0.162878,61396.0,61390.0,0.001634]
[1728649876714,0.162876,61397.0,61390.0,0.001634]
[1728649876913,0.162877,61396.0,61392.0,0.01106419]
[1728649877141,0.162878,61396.0,61393.0,0.01110952]
[1728649877374,0.1,61401.0,61398.0,0.16287]
[1728649877594,0.1,61405.0,61395.0,0.325758]
[1728649877811,0.1,61403.0,61399.0,0.01107621]
[1728649878050,0.67872926,61400.0,61391.0,0.001632]
[1728649878265,0.162887,61392.0,61391.0,0.001632]
[1728649878721,0.1693093,61399.0,61391.0,0.001632]
[1728649878948,0.162887,61392.0,61391.0,0.001632]
[1728649879652,0.325764,61394.0,61391.0,0.001632]
[1728649879875,0.162887,61392.0,61391.0,0.001632]
[1728649880096,0.162885,61393.0,61391.0,0.001632]
[1728649880340,0.1,61401.0,61391.0,0.001632]
[1728649880556,0.0804,61407.0,61392.0,0.325773]
[1728649880796,0.325705,61406.0,61391.0,0.001632]
[1728649881031,0.325683,61410.0,61396.0,0.005]
[1728649881260,0.162845,61408.0,61403.0,0.162856]
[1728649881505,0.162849,61407.0,61403.0,0.162858]
[1728649881726,0.325676,61411.0,61399.0,0.325737]
[1728649881949,0.325691,61408.0,61400.0,0.162864]
[1728649882170,0.325691,61408.0,61401.0,0.162863]
[1728649882396,0.000816,61401.0,61386.0,0.005]
[1728649882623,0.000816,61401.0,61392.0,0.40688069]
[1728649882893,0.325745,61398.0,61392.0,0.24399369]
[1728649883116,0.325745,61398.0,61390.0,0.001634]
[1728649883258,0.000816,61401.0,61390.0,0.327414]
[1728649883478,0.000816,61401.0,61393.0,0.005]
[1728649883686,0.000816,61401.0,61391.0,0.1709413]
[1728649883687,0.000816,61401.0,61400.0,0.167866]
[1728649885030,0.000816,61401.0,61400.0,0.34043234]
[1728649885232,0.000816,61401.0,61400.0,0.3371753]
[1728649886771,0.000816,61401.0,61400.0,0.77191087]
[1728649886928,0.000816,61401.0,61400.0,0.79491087]
[1728649888029,0.000816,61401.0,61400.0,0.80590121]
[1728649888438,0.000816,61401.0,61400.0,0.34816564]
[1728649888656,0.000816,61401.0,61400.0,0.17885634]
[1728649888809,0.000816,61401.0,61400.0,0.17564702]
[1728649889826,0.000616,61401.0,61400.0,0.17534702]
[1728649892712,0.24399369,61409.0,61407.0,0.162847]
[1728649892947,0.24399369,61409.0,61408.0,0.007747]
[1728649893273,0.000816,61414.0,61408.0,0.170591]
[1728649893667,0.162833,61413.0,61408.0,0.007747]
[1728649893870,0.000816,61414.0,61409.0,0.325684]
[1728649894102,0.000816,61414.0,61410.0,0.00767291]
[1728649894306,0.000816,61414.0,61411.0,0.162836]
[1728649894512,0.000816,61413.0,61412.0,0.00766551]
[1728649895421,0.000816,61413.0,61407.0,0.325695]
[1728649895652,0.000816,61413.0,61412.0,0.00766551]
[1728649895895,0.000816,61413.0,61406.0,0.162849]
[1728649896129,0.000816,61413.0,61401.0,0.000384]
[1728649896130,0.0335444,61413.0,61401.0,0.000384]
[1728649896360,0.162861,61402.0,61401.0,0.000384]
[1728649896585,0.162853,61405.0,61404.0,0.24399369]
[1728649896817,0.325705,61406.0,61401.0,0.000384]
[1728649897092,0.1,61409.0,61402.0,0.24399369]
[1728649897330,0.1,61412.0,61401.0,0.326109]
[1728649897561,0.000816,61413.0,61404.0,0.325709]
[1728649897775,0.000816,61413.0,61408.0,0.162843]
[1728649898272,0.000816,61413.0,61406.0,0.162848]
[1728649898468,0.163648,61413.0,61406.0,0.162848]
[1728649898691,0.162835,61412.0,61402.0,0.24399369]
[1728649898921,0.000816,61413.0,61402.0,0.24399369]
[1728649899135,0.000816,61413.0,61406.0,0.325698]
[1728649899369,0.000816,61413.0,61412.0,0.162834]
[1728649899825,0.000816,61413.0,61412.0,0.44969312]
[1728649900041,0.000816,61413.0,61412.0,0.162834]
[1728649900946,0.000816,61413.0,61412.0,0.00767784]
[1728649901155,0.000816,61413.0,61412.0,0.162834]
[1728649901374,0.000816,61413.0,61412.0,0.17550393]
[1728649902613,0.000816,61413.0,61412.0,0.17876023]
[1728649904021,0.000816,61413.0,61412.0,0.34806953]
[1728649904226,0.000816,61413.0,61412.0,0.34481323]
[1728649906398,0.000817,61429.0,61428.0,0.58465112]
[1728649906632,0.24399369,61432.0,61431.0,0.295784]
[1728649906851,0.24399369,61432.0,61431.0,0.4650933]
[1728649907077,0.24399369,61439.0,61438.0,0.167765]
[1728649907316,0.24399369,61439.0,61438.0,0.62393342]
[1728649907538,0.24399369,61446.0,61445.0,0.162747]
[1728649907979,0.000816,61449.0,61445.0,0.17138984]
[1728649908227,0.000816,61449.0,61445.0,0.00864384]
[1728649908476,0.000816,61449.0,61445.0,0.17138984]
[1728649908698,0.000816,61449.0,61448.0,0.80623021]
[1728649908916,0.000816,61449.0,61448.0,0.97553951]
[1728649909134,0.000816,61449.0,61448.0,0.98407322]
[1728649911470,0.000816,61449.0,61448.0,0.97407322]
[1728649911757,0.000816,61449.0,61448.0,0.90217322]
[1728649911983,0.000816,61449.0,61448.0,0.00853371]
[1728649912205,0.000816,61449.0,61425.0,0.12012375]
[1728649912206,0.000816,61449.0,61437.0,0.43359121]
[1728649912433,0.000816,61449.0,61441.0,0.24399369]
[1728649912676,0.1693093,61448.0,61431.0,0.43359121]
[1728649912894,0.162798,61426.0,61425.0,0.24399369]
[1728649913123,0.325579,61429.0,61425.0,0.24399369]
[1728649913525,0.162797,61426.0,61425.0,0.24399369]
[1728649913527,0.000816,61449.0,61429.0,0.005]
[1728649913755,0.000816,61449.0,61433.0,0.005]
[1728649914031,0.33449369,61444.0,61421.0,0.005]
[1728649914267,0.33449369,61444.0,61422.0,0.005]
[1728649914268,0.1,61443.0,61422.0,0.005]
[1728649914501,0.1,61443.0,61426.0,0.162796]
[1728649914502,0.162779,61433.0,61426.0,0.162796]
[1728649914745,0.325539,61437.0,61426.0,0.162796]
[1728649914995,0.1,61443.0,61419.0,0.005]
[1728649915227,0.1,61443.0,61416.0,0.24399369]
[1728649915228,0.002,61439.0,61416.0,0.24899369]
[1728649915451,0.1693093,61438.0,61424.0,0.24399369]
[1728649915674,0.162797,61427.0,61420.0,0.162813]
[1728649915938,0.325574,61430.0,61423.0,0.24399369]
[1728649916221,0.1,61420.0,61401.0,0.24437769]
[1728649916445,0.162837,61411.0,61410.0,0.24399369]
[1728649916689,0.162861,61402.0,61401.0,0.24437769]
[1728649917166,0.2442899,61402.0,61401.0,0.01128035]
[1728649917405,0.2442899,61402.0,61401.0,0.000384]
[1728649918125,0.325701,61406.0,61401.0,0.000384]
[1728649918353,0.162856,61404.0,61401.0,0.000384]
[1728649918593,0.325701,61406.0,61402.0,0.00758095]
[1728649918818,0.162856,61404.0,61402.0,0.00758095]
[1728649919053,0.32569,61408.0,61402.0,0.00758095]
[1728649919292,0.162849,61407.0,61402.0,0.00758095]
[1728649919535,0.162851,61406.0,61402.0,0.00758095]
[1728649919793,0.162843,61409.0,61403.0,0.162857]
[1728649920261,0.24399369,61410.0,61404.0,0.00759089]
[1728649920262,0.32569,61408.0,61404.0,0.00759089]
[1728649920494,0.162851,61406.0,61404.0,0.00759089]
[1728649920735,0.162851,61406.0,61401.0,0.000384]
[1728649920985,0.162851,61406.0,61402.0,0.00759829]
[1728649921205,0.162845,61408.0,61402.0,0.17045829]
[1728649921436,0.24399369,61409.0,61402.0,0.00759829]
[1728649921659,0.56968169,61409.0,61402.0,0.17045729]
[1728649921883,0.56968169,61409.0,61402.0,0.00759829]
[1728649922114,0.56968169,61409.0,61403.0,0.162858]
[1728649922115,0.162845,61408.0,61403.0,0.162858]
[1728649922380,0.162845,61408.0,61401.0,0.32611]
[1728649922381,0.43359121,61409.0,61401.0,0.000384]
[1728649922653,0.162847,61408.0,61404.0,0.00759089]
[1728649922874,0.162842,61410.0,61404.0,0.162855]
[1728649923098,0.1,61411.0,61405.0,0.00758719]
[1728649923338,0.1,61411.0,61406.0,0.16285]
[1728649923574,0.1,61411.0,61406.0,0.162848]
[1728649923810,0.1,61411.0,61407.0,0.17042679]
[1728649924042,0.1,61412.0,61407.0,0.00757979]
[1728649924282,0.162837,61411.0,61407.0,0.00757979]
[1728649924512,0.1,61412.0,61407.0,0.00757979]
[1728649924750,0.6775849,61410.0,61401.0,0.000384]
[1728649924976,0.59645221,61402.0,61401.0,0.000384]
[1728649925219,0.76576151,61402.0,61401.0,0.000384]
[1728649925915,0.86576151,61402.0,61401.0,0.000384]
[1728649926481,1.11510421,61402.0,61401.0,0.000384]
[1728649926705,1.11510421,61402.0,61390.0,0.001634]
[1728649926706,0.95224321,61402.0,61390.0,0.001634]
[1728649926977,0.86778751,61392.0,61390.0,0.001634]
[1728649928450,0.59651321,61379.0,61378.0,0.24025969]
[1728649928753,0.1693093,61379.0,61378.0,0.24025969]
[1728649928954,0.1,61387.0,61367.0,0.001632]
[1728649929236,0.1,61387.0,61372.0,0.005]
[1728649929455,0.1,61388.0,61372.0,0.005]
[1728649929701,0.1,61388.0,61374.0,0.005]
[1728649929937,0.1,61388.0,61375.0,0.325864]
[1728649930186,0.1,61388.0,61381.0,0.162916]
[1728649930662,0.24399369,61389.0,61375.0,0.325864]
[1728649930911,0.16289,61391.0,61382.0,0.162911]
[1728649931165,0.262879,61395.0,61386.0,0.162901]
[1728649931414,0.262879,61395.0,61383.0,0.325821]
[1728649931415,0.1,61393.0,61383.0,0.325821]
[1728649931632,0.1,61391.0,61385.0,0.162905]
[1728649931865,0.1693093,61392.0,61381.0,0.325833]
[1728649932096,0.06354719,61395.0,61382.0,0.325827]
[1728649932334,0.1694427,61402.0,61382.0,0.005]
[1728649932610,0.56971469,61403.0,61386.0,0.325806]
[1728649932879,0.325723,61402.0,61382.0,0.005]
[1728649933156,0.24399369,61389.0,61380.0,0.162918]
[1728649933382,0.162916,61382.0,61376.0,0.24399369]
[1728649933623,0.325821,61384.0,61376.0,0.24399369]
[1728649933881,0.325806,61387.0,61375.0,0.162931]
[1728649933882,0.162907,61385.0,61375.0,0.32586]
[1728649934163,0.32582,61384.0,61374.0,0.162935]
[1728649934406,0.32582,61384.0,61367.0,0.327539]
[1728649934407,0.325824,61383.0,61367.0,0.327539]
[1728649934647,0.325802,61387.0,61367.0,0.327539]
[1728649934648,0.11727182,61382.0,61367.0,0.001632]
[1728649934875,0.28735281,61389.0,61368.0,0.1693093]
[1728649935115,0.28735281,61389.0,61383.0,0.162909]
[1728649935116,0.24399369,61389.0,61383.0,0.162909]
[1728649935349,0.24399369,61389.0,61388.0,0.162898]
[1728649935594,0.24399369,61396.0,61395.0,0.162879]
[1728649935824,0.24399369,61396.0,61392.0,0.162886]
[1728649936060,0.24399369,61396.0,61393.0,0.162884]
[1728649936575,0.44755646,61396.0,61388.0,0.162895]
[1728649936824,0.04068577,61396.0,61386.0,0.325804]
[1728649937088,0.04068577,61396.0,61390.0,0.325782]
[1728649937316,0.1,61400.0,61385.0,0.005]
[1728649937533,0.1,61400.0,61397.0,0.162874]
[1728649937753,0.24399369,61403.0,61385.0,0.005]
[1728649938026,0.1,61402.0,61386.0,0.24399369]
[1728649938261,0.162865,61401.0,61391.0,0.325776]
[1728649938496,0.1839002,61402.0,61395.0,0.162879]
[1728649938734,0.1839002,61402.0,61393.0,0.162883]
[1728649939030,0.162869,61400.0,61385.0,0.33081]
[1728649939291,0.162869,61400.0,61392.0,0.162885]
[1728649939519,0.1839002,61402.0,61389.0,0.32579]
[1728649939520,0.30401942,61399.0,61389.0,0.32579]
[1728649939743,0.14115042,61399.0,61392.0,0.162887]
[1728649941333,0.162853,61405.0,61398.0,0.162871]
[1728649941566,0.1,61401.0,61398.0,0.16287]
[1728649941785,0.162849,61407.0,61390.0,0.005]
[1728649942014,0.0908,61418.0,61398.0,0.24399369]
[1728649942279,0.0908,61418.0,61396.0,0.005]
[1728649942280,0.24399369,61409.0,61396.0,0.005]
[1728649942530,0.24399369,61409.0,61397.0,0.00825712]
[1728649942785,0.24399369,61409.0,61406.0,0.162849]
[1728649943275,0.162833,61413.0,61405.0,0.162851]
[1728649943516,0.162816,61419.0,61400.0,0.005]
[1728649943752,0.24399369,61424.0,61406.0,0.43859121]
[1728649943994,0.24399369,61424.0,61415.0,0.162826]
[1728649943995,0.24399369,61416.0,61415.0,0.162826]
[1728649944239,0.24399369,61416.0,61412.0,0.325669]
[1728649944516,0.05695847,61423.0,61406.0,0.60790051]
[1728649944743,0.162811,61421.0,61414.0,0.162828]
[1728649945215,0.1,61422.0,61414.0,0.162828]
[1728649945466,0.1,61422.0,61412.0,0.325668]
[1728649945703,0.2023248,61422.0,61412.0,0.325668]
[1728649945932,0.24399369,61424.0,61417.0,0.16282]
[1728649946164,0.24399369,61424.0,61414.0,0.325656]
[1728649946384,0.24399369,61424.0,61416.0,0.162822]
[1728649946645,0.000818,61429.0,61410.0,0.005]
[1728649946882,0.000818,61429.0,61416.0,0.43359121]
[1728649947097,0.24399369,61425.0,61416.0,0.43359121]
[1728649947606,0.24399369,61425.0,61422.0,0.162807]
[1728649947843,0.24399369,61425.0,61416.0,0.325644]
[1728649948076,0.02448117,61424.0,61417.0,0.16282]
[1728649948336,0.02448117,61424.0,61417.0,0.162819]
[1728649948566,0.162797,61426.0,61418.0,0.162817]
[1728649948816,0.162796,61427.0,61419.0,0.162814]
[1728649949041,0.162794,61428.0,61419.0,0.162814]
[1728649949295,0.162811,61421.0,61411.0,0.162835]
[1728649949530,0.162816,61419.0,61414.0,0.24399369]
[1728649949760,0.162816,61419.0,61407.0,0.24399369]
[1728649949761,0.162816,61419.0,61409.0,0.325682]
[1728649949997,0.325628,61420.0,61409.0,0.325682]
[1728649950254,0.6775849,61418.0,61400.0,0.325731]
[1728649950490,0.6775849,61418.0,61404.0,0.24399369]
[1728649950491,0.325686,61409.0,61404.0,0.24399369]
[1728649950715,0.325685,61409.0,61397.0,0.24399369]
[1728649950948,0.325697,61407.0,61397.0,0.40686569]
[1728649951185,0.41330299,61406.0,61393.0,0.001636]
[1728649951417,0.162871,61399.0,61393.0,0.001636]
[1728649951651,0.325734,61400.0,61393.0,0.001636]
[1728649951856,0.1693093,61406.0,61393.0,0.001636]
[1728649951857,0.162865,61401.0,61393.0,0.001636]
[1728649952143,0.41330299,61406.0,61395.0,0.162879]
[1728649952368,0.41330299,61406.0,61394.0,0.162881]
[1728649952369,0.325706,61405.0,61394.0,0.162881]
[1728649952623,0.3321653,61404.0,61395.0,0.162878]
[1728649953126,0.32568,61410.0,61400.0,0.162865]
[1728649953364,0.34399369,61416.0,61404.0,0.162855]
[1728649953365,0.24399369,61408.0,61404.0,0.162855]
[1728649953550,0.24399369,61409.0,61395.0,0.325755]
[1728649953780,0.0778,61414.0,61404.0,0.325711]
[1728649954018,0.24399369,61409.0,61402.0,0.325718]
[1728649954269,0.34399369,61416.0,61408.0,0.162845]
[1728649954496,0.34399369,61416.0,61409.0,0.162842]
[1728649954730,0.39467446,61416.0,61409.0,0.162842]
[1728649954974,0.420715,61423.0,61407.0,0.325694]
[1728649954975,0.1,61422.0,61410.0,0.162839]
[1728649955204,0.1,61417.0,61407.0,0.325694]
[1728649955442,0.1,61417.0,61401.0,0.43359121]
[1728649955443,0.1693093,61421.0,61413.0,0.325659]
[1728649955670,0.1693093,61421.0,61414.0,0.162827]
[1728649956133,0.24481169,61425.0,61417.0,0.162821]
[1728649956365,0.06018773,61424.0,61417.0,0.162821]
[1728649956609,0.24481169,61425.0,61417.0,0.162821]
[1728649956866,0.24481169,61425.0,61415.0,0.32565]
[1728649956867,0.1,61424.0,61415.0,0.32565]
[1728649957116,0.000818,61425.0,61418.0,0.162816]
[1728649957371,0.000818,61425.0,61419.0,0.162816]
[1728649957626,0.000818,61425.0,61412.0,0.24399369]
[1728649957873,0.000818,61425.0,61415.0,0.325648]
[1728649958152,0.24399369,61424.0,61415.0,0.162824]
[1728649958363,0.24399369,61424.0,61410.0,0.005]
[1728649958364,0.04390893,61424.0,61410.0,0.005]
[1728649958618,0.000818,61425.0,61415.0,0.32565]
[1728649958849,0.24399369,61424.0,61416.0,0.162823]
[1728649959084,0.24399369,61424.0,61413.0,0.162831]
[1728649959317,0.24399369,61424.0,61411.0,0.325672]
[1728649959318,0.24399369,61424.0,61414.0,0.162828]
[1728649959797,0.24399369,61424.0,61412.0,0.325665]
[1728649960050,0.08332007,61423.0,61412.0,0.162833]
[1728649960521,0.1693093,61422.0,61403.0,0.005]
[1728649960757,0.1693093,61422.0,61407.0,0.325692]
[1728649961025,0.04974411,61421.0,61410.0,0.162839]
[1728649961533,0.04974411,61421.0,61403.0,0.005]